fUSD/lending_fUSD_20241119
["ID","MTS","AMOUNT","RATE_DAILY","PERIOD"]
[342679885,1732044670864,-756.28,0.00056164,120]
[342679886,1732044670874,-500.0,0.00056164,120]
[342679887,1732044670883,-500.0,0.00056164,120]
[342679888,1732044670893,-500.0,0.00056164,120]
[342679889,1732044670903,-500.0,0.00056164,120]
[342679890,1732044670912,-500.0,0.00056164,120]
[342679891,1732044670922,-487.61949498,0.00056164,120]
[342679892,1732044670934,-500.0,0.00056164,120]
[342679893,1732044670944,-649.5197203,0.00056164,120]
[342679894,1732044670955,-500.0,0.00056164,120]
[342679895,1732044670965,-500.0,0.00056164,120]
[342679896,1732044670974,-500.0,0.00056164,120]
[342679897,1732044670983,-500.0,0.00056164,120]
[342679898,1732044670992,-500.0,0.00056164,120]
[342679899,1732044671002,-500.0,0.00056164,120]
[342679900,1732044671011,-502.53,0.00056164,120]
[342679901,1732044671020,-500.0,0.00056164,120]
[342679902,1732044671030,-500.0,0.00056164,120]
[342679903,1732044671039,-500.0,0.00056164,120]
[342679904,1732044671050,-500.0,0.00056164,120]
[342679905,1732044671060,-500.0,0.00056164,120]
[342679906,1732044671069,-562.7,0.00056164,120]
[342679907,1732044671078,-622.15,0.00056164,120]
[342679908,1732044671087,-500.0,0.00056164,120]
[342679909,1732044671098,-500.0,0.00056164,120]
[342679910,1732044671107,-500.0,0.00056164,120]
[342679911,1732044671116,-500.0,0.00056164,120]
[342679912,1732044671126,-500.0,0.00056164,120]
[342679913,1732044671136,-500.0,0.00056164,120]
[342679914,1732044671146,-500.0,0.00056164,120]
[342679915,1732044671156,-500.0,0.00056164,120]
[342679916,1732044671165,-500.0,0.00056164,120]
[342679917,1732044671175,-500.0,0.00056164,120]
[342679918,1732044671184,-500.0,0.00056164,120]
[342679919,1732044671194,-500.0,0.00056164,120]
[342679920,1732044671203,-269.0597266,0.00056164,60]
[342679921,1732044671213,-500.0,0.00056164,120]
[342679922,1732044671222,-279.4170364,0.00056164,120]
[342679923,1732044691091,183.756834,0.00026292,2]
[342679929,1732044744940,1666.9406,0.00031352,120]
[342679932,1732045533152,-154.81,0.00015342,2]
[342679933,1732045533175,-154.81,0.000221,2]
[342679934,1732045533197,-250.0,0.00027,2]
[342679935,1732045533220,-154.81,0.00028858,2]
[342679936,1732045533242,-300.0,0.00029,2]
[342679937,1732045533263,-450.0,0.0003,4]
[342679938,1732045533285,-350.0,0.00031,2]
[342679939,1732045533307,-4349.11265958,0.00032109,2]
[342679940,1732045630101,-386.2837906,0.00032109,2]
[342679941,1732045640104,-1064.60354982,0.00032109,2]
[342679942,1732045640125,-150.0,0.00034548,10]
[342679943,1732045640147,-154.81,0.00035616,2]
[342679944,1732045640168,-678.40613252,0.00038,120]
[342679945,1732045640188,-179.45526683,0.00038,120]
[342679946,1732045640214,-411.44,0.0004,120]
[342679947,1732045640234,-12500.0,0.0004,120]
[342679948,1732045640254,-6716.42,0.0004,30]
[342679949,1732045640276,-4110.19,0.0004,120]
[342679950,1732045640296,-678.40613252,0.0004,120]
[342679951,1732045640317,-179.45526683,0.0004,120]
[342679952,1732045640337,-1368.954,0.0004,56]
[342679953,1732045640358,-468.57,0.00040289,2]
[342679954,1732045640379,-12500.0,0.00040375,120]
[342679955,1732045640400,-7414.5,0.0004075,120]
[342679956,1732045640421,-23890.0,0.00041279,2]
[342679957,1732045640442,-152.97,0.00041987,120]
[342679958,1732045640465,-154.81,0.00042374,2]
[342679959,1732045640485,-760.7,0.00042525,2]
[342679960,1732045640506,-468.57,0.00042553,2]
[342679961,1732045640531,-2751.0,0.00042611,120]
[342679962,1732045640551,-250.0,0.00042728,120]
[342679963,1732045640575,-200.0,0.00042883,2]
[342679964,1732045640595,-1038.43918976,0.000429,15]
[342679965,1732045640616,-161.62521602,0.000429,15]
[342679966,1732045640636,-250.0,0.00042922,2]
[342679967,1732045640657,-1000.0,0.00042922,2]
[342679968,1732045640676,-150.99,0.0004299,2]
[342679969,1732045640696,-299.99,0.0004299,120]
[342679970,1732045640719,-940.87,0.0004299,2]
[342679971,1732045640739,-218.05,0.0004299,10]
[342679972,1732045640760,-163259.38120161,0.00043,30]
[342679973,1732045643113,-181.7,0.0004299,10]
[342679974,1732045643137,-1250.15129832,0.00043,30]
[342679975,1732045751114,-160.19855005,0.000429,15]
[342679976,1732045751136,-151.42,0.0004299,10]
[342679977,1732045751158,-757.13,0.0004299,10]
[342679978,1732045751179,-40343.89250995,0.00043,30]
[342679979,1732045754505,46453.51356858,0.0002,3]
[342679980,1732045770135,-64971.03160441,0.00043,30]
[342679981,1732045814920,150.0,0.00034602,2]
[342679982,1732045831408,195.03975,0.00027903,2]
[342679989,1732045832397,-678.40613252,0.00031458,120]
[342679990,1732045832407,-175.47386748,0.00031458,120]
[342679993,1732045832644,-3.98139935,0.00031458,120]
[342679995,1732045832654,-485.86,0.00042922,2]
[342679996,1732045832664,-550.0,0.00042999,5]
[342679997,1732045832674,-19846.15870065,0.00043,30]
[342679999,1732045832685,-9139.32303112,0.00043,30]
[342680062,1732045837433,164.0,6.984e-05,2]
[342680066,1732045838158,-26755.86179806,0.00043,30]
[342680067,1732045838169,-998.4054901,0.00043,30]
[342680068,1732045838181,-3141.22348697,0.00043,30]
[342680069,1732045838664,-24203.60625855,0.00043,30]
[342680070,1732045838675,-1356.81226504,0.00043,120]
[342680071,1732045838685,-358.91053367,0.00043,120]
[342680072,1732045838695,-150.0,0.00043,2]
[342680073,1732045838705,-150.0,0.00043,2]
[342680074,1732045838715,-150.0,0.00043,2]
[342680075,1732045838724,-676.0,0.00044443,5]
[342680076,1732045838734,-152.97,0.00044714,120]
[342680077,1732045838744,-468.57,0.00044817,2]
[342680078,1732045838753,-7500.0,0.00045,2]
[342680079,1732045838764,-764.4157282,0.00045,120]
[342680080,1732045838773,-832.0,0.00045935,5]
[342680081,1732045838783,-428.19547328,0.00046,120]
[342680082,1732045838825,-1267.81985802,0.00046,120]
[342680083,1732045838835,-448.63816708,0.00046,120]
[342680084,1732045838844,-160.19855002,0.000466,15]
[342680085,1732045838854,-200.0,0.00046754,120]
[342680086,1732045838865,-468.57,0.00047081,2]
[342680087,1732045838875,-17601.53796038,0.000472,120]
[342680088,1732045838892,-1914.85610972,0.000472,120]
[342680089,1732045838902,-152.97,0.00047442,120]
[342680090,1732045838912,-1023.0,0.00047477,5]
[342680091,1732045838922,-1696.01533131,0.00048,120]
[342680092,1732045838931,-448.63816709,0.00048,120]
[342680093,1732045838941,-250.0,0.00048066,120]
[342680094,1732045838951,-1677.37339294,0.00048135,2]
[342680095,1732045838961,-161.75,0.00048135,2]
[342680096,1732045838971,-250.0,0.00048135,2]
[342680097,1732045838982,-1000.0,0.00048287,2]
[342680098,1732045838992,-150.0,0.00048335,2]
[342680099,1732045839002,-584.01,0.00048335,120]
[342680100,1732045839015,-300.0,0.00048335,2]
[342680101,1732045839030,-2130.81,0.00048335,2]
[342680102,1732045839040,-157.0,0.00048335,2]
[342680103,1732045839049,-1026.33,0.00048335,2]
[342680104,1732045839060,-1000.0,0.00048335,120]
[342680105,1732045839071,-342.72,0.00048335,120]
[342680106,1732045839081,-226.63,0.00048645,120]
[342680107,1732045839091,-1258.0,0.00049071,5]
[342680108,1732045839101,-154.81,0.00049132,2]
[342680109,1732045839111,-468.57,0.00049345,2]
[342680110,1732045839123,-165.88,0.00049787,2]
[342680111,1732045839133,-50000.0,0.0005,30]
[342680112,1732045839142,-50000.0,0.0005,40]
[342680113,1732045839151,-50000.0,0.0005,50]
[342680114,1732045839161,-165.0,0.0005,120]
[342680115,1732045839170,-500.0,0.0005,120]
[342680116,1732045839180,-150.0,0.0005,120]
[342680117,1732045839190,-152.97,0.00050169,120]
[342680118,1732045839199,-160.19855002,0.000503,15]
[342680119,1732045839209,-1548.0,0.00050718,10]
[342680120,1732045839219,-200.0,0.000509,18]
[342680121,1732045839229,-20950.29329,0.000509,30]
[342680122,1732045839239,-50000.0,0.00051,31]
[342680123,1732045839250,-50000.0,0.00051,41]
[342680124,1732045839259,-50000.0,0.00051,51]
[342680125,1732045839269,-468.57,0.00051609,2]
[342680126,1732045839279,-220.0,0.000519,2]
[342680127,1732045839288,-800.0,0.000519,22]
[342680128,1732045839298,-800.0,0.000519,22]
[342680129,1732045839308,-800.0,0.000519,22]
[342680130,1732045839317,-800.0,0.000519,22]
[342680131,1732045839327,-800.0,0.000519,22]
[342680132,1732045839337,-800.0,0.000519,32]
[342680133,1732045839347,-50000.0,0.00052,32]
[342680134,1732045839356,-50000.0,0.00052,42]
[342680135,1732045839367,-50000.0,0.00052,52]
[342680136,1732045839376,-118737.58587484,0.000521,120]
[342680137,1732045839386,-1627.0,0.00052421,10]
[342680138,1732045839396,-152.97,0.00052897,120]
[342680139,1732045839406,-1052.67210668,0.000529,2]
[342680140,1732045839415,-500.0,0.000529,19]
[342680141,1732045839425,-50000.0,0.00053,33]
[342680142,1732045839435,-50000.0,0.00053,43]
[342680143,1732045839444,-50000.0,0.00053,53]
[342680144,1732045839454,-150.0,0.00053177,30]
[342680145,1732045839463,-1000.0,0.00053653,120]
[342680146,1732045839473,-468.57,0.00053873,2]
[342680147,1732045839483,-50000.0,0.00054,24]
[342680148,1732045839493,-50000.0,0.00054,34]
[342680149,1732045839502,-50000.0,0.00054,54]
[342680150,1732045839512,-160.19855002,0.00054,15]
[342680151,1732045839521,-342.72,0.00054377,120]
[342680152,1732045839531,-1026.87035894,0.00054449,30]
[342680153,1732045839540,-1118.0855164,0.00054449,30]
[342680154,1732045839551,-1127.0,0.00054494,120]
[342680155,1732045839560,-205.0,0.00054691,7]
[342680156,1732045839571,-88888.0,0.00054694,120]
[342680157,1732045839580,-226.63,0.00054726,120]
[342680158,1732045839590,-500.0,0.00054794,120]
[342680159,1732045839600,-500.0,0.00054794,120]
[342680160,1732045839609,-500.0,0.00054794,120]
[342680161,1732045839621,-500.0,0.00054794,120]
[342680162,1732045839630,-500.0,0.00054794,120]
[342680163,1732045839640,-500.0,0.00054794,120]
[342680164,1732045839650,-500.0,0.00054794,120]
[342680165,1732045839659,-500.0,0.00054794,120]
[342680166,1732045839670,-500.0,0.00054794,120]
[342680167,1732045839680,-500.0,0.00054794,120]
[342680168,1732045839689,-500.0,0.00054794,120]
[342680169,1732045839700,-500.0,0.00054794,120]
[342680170,1732045839709,-500.0,0.00054794,120]
[342680171,1732045839719,-500.0,0.00054794,120]
[342680172,1732045839728,-500.0,0.00054794,120]
[342680173,1732045839738,-501.11568681,0.00054794,120]
[342680174,1732045839748,-500.56006487,0.00054794,120]
[342680175,1732045839759,-304.09276949,0.00054794,120]
[342680176,1732045839769,-500.0,0.00054794,120]
[342680177,1732045839779,-500.0,0.00054794,120]
[342680178,1732045839790,-500.72848708,0.00054794,120]
[342680179,1732045839800,-403.18375851,0.00054794,120]
[342680180,1732045839810,-500.0,0.00054794,120]
[342680181,1732045839819,-500.0,0.00054794,120]
[342680182,1732045839829,-500.0,0.00054794,120]
[342680183,1732045839838,-500.0,0.00054794,120]
[342680184,1732045839848,-500.0,0.00054794,120]
[342680185,1732045839858,-500.0,0.00054794,120]
[342680186,1732045839870,-500.0,0.00054794,120]
[342680187,1732045839879,-530.30173628,0.00054794,120]
[342680188,1732045839889,-500.0,0.00054794,120]
[342680190,1732045840036,-500.0,0.00054794,120]
[342680191,1732045840047,-500.0,0.00054794,120]
[342680192,1732045840057,-500.0,0.00054794,120]
[342680193,1732045840067,-500.0,0.00054794,120]
[342680194,1732045840077,-500.0,0.00054794,120]
[342680195,1732045840086,-500.0,0.00054794,120]
[342680196,1732045840098,-500.0,0.00054794,120]
[342680197,1732045840108,-500.0,0.00054794,120]
[342680198,1732045840118,-500.0,0.00054794,120]
[342680199,1732045840128,-500.0,0.00054794,2]
[342680200,1732045840137,-500.77843812,0.00054794,30]
[342680201,1732045840147,-500.0,0.00054794,120]
[342680202,1732045840156,-500.0,0.00054794,120]
[342680203,1732045840166,-500.0,0.00054794,120]
[342680204,1732045840176,-508.5,0.00054794,120]
[342680205,1732045840186,-500.0,0.00054794,120]
[342680206,1732045840195,-500.0,0.00054794,120]
[342680207,1732045840206,-500.0,0.00054794,120]
[342680208,1732045840215,-500.0,0.00054794,120]
[342680209,1732045840225,-270.90449756,0.00054794,120]
[342680210,1732045840235,-669.44,0.00054794,120]
[342680211,1732045840244,-500.0,0.00054794,120]
[342680212,1732045840254,-500.0,0.00054794,120]
[342680213,1732045840264,-500.0,0.00054794,120]
[342680214,1732045840274,-1783.84,0.00054794,120]
[342680215,1732045840284,-500.0,0.00054794,120]
[342680216,1732045840294,-588.91,0.00054794,120]
[342680217,1732045840304,-500.0,0.00054794,120]
[342680218,1732045840315,-502.61369325,0.00054794,120]
[342680219,1732045840326,-500.0,0.00054794,120]
[342680220,1732045840335,-516.12744013,0.00054794,120]
[342680221,1732045840346,-500.0,0.00054794,120]
[342680222,1732045840356,-502.16723074,0.00054794,120]
[342680223,1732045840366,-361.33462736,0.00054794,120]
[342680224,1732045840382,-500.0,0.00054794,120]
[342680225,1732045840391,-500.0,0.00054794,120]
[342680226,1732045840401,-500.0,0.00054794,120]
[342680227,1732045840411,-501.65630467,0.00054794,120]
[342680229,1732045840420,-500.0,0.00054794,120]
[342680230,1732045840430,-500.0,0.00054794,120]
[342680232,1732045840439,-614.6,0.00054794,120]
[342680233,1732045840449,-500.0,0.00054794,120]
[342680234,1732045840459,-501.15711128,0.00054794,120]
[342680235,1732045840468,-500.0,0.00054794,120]
[342680236,1732045840478,-524.30779882,0.00054794,120]
[342680237,1732045840488,-502.55696395,0.00054794,120]
[342680238,1732045840498,-502.04639587,0.00054794,120]
[342680239,1732045840508,-500.0,0.00054794,120]
[342680240,1732045840517,-500.0,0.00054794,120]
[342680241,1732045840527,-500.0,0.00054794,120]
[342680242,1732045840536,-857.16,0.00054794,120]
[342680243,1732045840546,-500.0,0.00054794,2]
[342680245,1732045840556,-500.0,0.00054794,120]
[342680247,1732045840566,-500.0,0.00054794,120]
[342680248,1732045840576,-500.0,0.00054794,120]
[342680249,1732045840585,-574.368123,0.00054794,120]
[342680250,1732045840595,-500.0,0.00054794,120]
[342680251,1732045840604,-500.0,0.00054794,120]
[342680252,1732045840614,-449.60010153,0.00054794,120]
[342680253,1732045840626,-153.08412705,0.00054794,120]
[342680254,1732045840635,-500.0,0.00054794,120]
[342680255,1732045840644,-500.0,0.00054794,120]
[342680256,1732045840654,-223.68106999,0.00054794,120]
[342680257,1732045840663,-354.41775593,0.00054794,120]
[342680258,1732045840673,-500.0,0.00054794,120]
[342680259,1732045840683,-500.0,0.00054794,120]
[342680260,1732045840692,-500.0,0.00054794,120]
[342680261,1732045840702,-500.0,0.00054794,120]
[342680262,1732045840712,-500.0,0.00054794,120]
[342680263,1732045840721,-500.0,0.00054794,120]
[342680264,1732045840731,-500.0,0.00054794,120]
[342680265,1732045840742,-500.0,0.00054794,120]
[342680266,1732045840753,-500.0,0.00054794,120]
[342680267,1732045840763,-500.0,0.00054794,120]
[342680268,1732045840773,-532.58984003,0.00054794,120]
[342680269,1732045840783,-500.0,0.00054794,120]
[342680270,1732045840792,-500.0,0.00054794,120]
[342680271,1732045840802,-500.0,0.00054794,120]
[342680272,1732045840811,-500.0,0.00054794,120]
[342680273,1732045840821,-500.0,0.00054794,120]
[342680274,1732045840831,-500.0,0.00054794,120]
[342680275,1732045840840,-500.0,0.00054794,120]
[342680276,1732045840851,-500.0,0.00054794,120]
[342680277,1732045840861,-500.0,0.00054794,120]
[342680278,1732045840872,-500.0,0.00054794,120]
[342680279,1732045840882,-500.0,0.00054794,120]
[342680280,1732045840891,-500.0,0.00054794,120]
[342680281,1732045840901,-500.0,0.00054794,120]
[342680282,1732045840910,-500.0,0.00054794,120]
[342680283,1732045840920,-500.0,0.00054794,120]
[342680284,1732045840929,-500.0,0.00054794,120]
[342680285,1732045840939,-576.88,0.00054794,120]
[342680286,1732045840948,-500.0,0.00054794,120]
[342680287,1732045840958,-500.0,0.00054794,120]
[342680288,1732045840968,-500.0,0.00054794,120]
[342680289,1732045840977,-500.0,0.00054794,120]
[342680290,1732045840987,-500.0,0.00054794,120]
[342680291,1732045840996,-500.0,0.00054794,120]
[342680292,1732045841005,-500.0,0.00054794,120]
[342680293,1732045841015,-760.57,0.00054794,120]
[342680294,1732045841028,-500.0,0.00054794,120]
[342680295,1732045841037,-500.0,0.00054794,120]
[342680296,1732045841046,-500.0,0.00054794,120]
[342680297,1732045841056,-500.0,0.00054794,120]
[342680298,1732045841066,-500.0,0.00054794,120]
[342680299,1732045841076,-500.0,0.00054794,120]
[342680300,1732045841086,-537.07,0.00054794,120]
[342680301,1732045841098,-500.0,0.00054794,120]
[342680302,1732045841107,-500.0,0.00054794,120]
[342680303,1732045841116,-500.0,0.00054794,120]
[342680304,1732045841126,-500.0,0.00054794,120]
[342680305,1732045841136,-500.0,0.00054794,120]
[342680306,1732045841145,-514.72140466,0.00054794,120]
[342680307,1732045841155,-648.84156741,0.00054794,120]
[342680308,1732045841165,-500.0,0.00054794,120]
[342680309,1732045841175,-500.0,0.00054794,120]
[342680310,1732045841185,-500.0,0.00054794,120]
[342680311,1732045841194,-505.9,0.00054794,120]
[342680312,1732045841203,-170.70100072,0.00054794,120]
[342680313,1732045841212,-500.0,0.00054794,120]
[342680314,1732045841222,-500.0,0.00054794,120]
[342680315,1732045841231,-500.0,0.00054794,120]
[342680316,1732045841241,-500.0,0.00054794,30]
[342680317,1732045841251,-500.0,0.00054794,120]
[342680318,1732045841260,-500.0,0.00054794,120]
[342680319,1732045841270,-500.0,0.00054794,120]
[342680320,1732045841279,-500.0,0.00054794,120]
[342680321,1732045841288,-500.0,0.00054794,120]
[342680322,1732045841301,-500.0,0.00054794,120]
[342680323,1732045841310,-529.32286941,0.00054794,120]
[342680324,1732045841320,-500.0,0.00054794,120]
[342680325,1732045841330,-521.73,0.00054794,120]
[342680326,1732045841340,-500.0,0.00054794,120]
[342680327,1732045841350,-503.91037295,0.00054794,120]
[342680328,1732045841359,-500.0,0.00054794,120]
[342680329,1732045841370,-240.78790668,0.00054794,120]
[342680330,1732045841380,-500.0,0.00054794,120]
[342680331,1732045841389,-500.0,0.00054794,120]
[342680332,1732045841399,-500.0,0.00054794,120]
[342680333,1732045841408,-500.0,0.00054794,120]
[342680334,1732045841418,-500.0,0.00054794,120]
[342680335,1732045841428,-500.0,0.00054794,120]
[342680336,1732045841437,-419.64956648,0.00054794,120]
[342680337,1732045841447,-549.64,0.00054794,120]
[342680338,1732045841457,-500.0,0.00054794,10]
[342680339,1732045841467,-500.0,0.00054794,120]
[342680340,1732045841476,-500.0,0.00054794,120]
[342680341,1732045841486,-500.0,0.00054794,120]
[342680342,1732045841496,-500.0,0.00054794,120]
[342680343,1732045841506,-500.0,0.00054794,120]
[342680344,1732045841515,-500.0,0.00054794,120]
[342680345,1732045841525,-291.35858971,0.00054794,120]
[342680346,1732045841534,-500.0,0.00054794,120]
[342680347,1732045841544,-500.0,0.00054794,120]
[342680348,1732045841554,-500.0,0.00054794,120]
[342680349,1732045841564,-500.0,0.00054794,120]
[342680350,1732045841574,-500.0,0.00054794,120]
[342680351,1732045841584,-500.0,0.00054794,120]
[342680352,1732045841593,-500.0,0.00054794,120]
[342680353,1732045841603,-500.0,0.00054794,120]
[342680354,1732045841612,-500.0,0.00054794,120]
[342680355,1732045841623,-500.0,0.00054794,120]
[342680356,1732045841634,-500.0,0.00054794,120]
[342680357,1732045841644,-500.0,0.00054794,120]
[342680358,1732045841654,-500.0,0.00054794,120]
[342680359,1732045841663,-500.0,0.00054794,120]
[342680360,1732045841672,-500.0,0.00054794,120]
[342680361,1732045841682,-500.0,0.00054794,120]
[342680362,1732045841691,-500.0,0.00054794,120]
[342680363,1732045841701,-500.0,0.00054794,120]
[342680364,1732045841711,-500.0,0.00054794,120]
[342680365,1732045841720,-500.0,0.00054794,120]
[342680366,1732045841730,-500.0,0.00054794,120]
[342680367,1732045841740,-500.0,0.00054794,120]
[342680368,1732045841750,-500.0,0.00054794,120]
[342680369,1732045841760,-500.0,0.00054794,120]
[342680370,1732045841769,-500.0,0.00054794,120]
[342680371,1732045841779,-500.0,0.00054794,120]
[342680372,1732045841789,-500.0,0.00054794,120]
[342680373,1732045841799,-500.0,0.00054794,120]
[342680374,1732045841808,-500.0,0.00054794,120]
[342680375,1732045841819,-500.0,0.00054794,120]
[342680376,1732045841829,-500.0,0.00054794,120]
[342680377,1732045841838,-500.0,0.00054794,120]
[342680378,1732045841848,-500.0,0.00054794,120]
[342680379,1732045841857,-500.0,0.00054794,120]
[342680380,1732045841866,-500.0,0.00054794,120]
[342680381,1732045841883,-500.0,0.00054794,120]
[342680382,1732045841892,-500.0,0.00054794,120]
[342680383,1732045841902,-500.0,0.00054794,120]
[342680384,1732045841911,-500.0,0.00054794,120]
[342680385,1732045841921,-500.0,0.00054794,120]
[342680386,1732045841930,-500.0,0.00054794,120]
[342680387,1732045841940,-500.0,0.00054794,120]
[342680388,1732045841949,-500.0,0.00054794,120]
[342680389,1732045841959,-500.0,0.00054794,120]
[342680390,1732045841969,-500.0,0.00054794,120]
[342680391,1732045841978,-500.0,0.00054794,120]
[342680392,1732045841988,-500.0,0.00054794,120]
[342680393,1732045841998,-500.0,0.00054794,120]
[342680394,1732045842007,-500.0,0.00054794,120]
[342680395,1732045842017,-500.0,0.00054794,120]
[342680396,1732045842031,-500.0,0.00054794,120]
[342680397,1732045842040,-500.75324553,0.00054794,120]
[342680398,1732045842050,-500.0,0.00054794,120]
[342680399,1732045842060,-500.0,0.00054794,120]
[342680400,1732045842070,-500.0,0.00054794,120]
[342680401,1732045842079,-500.0,0.00054794,120]
[342680402,1732045842088,-500.0,0.00054794,120]
[342680403,1732045842098,-500.0,0.00054794,120]
[342680404,1732045842109,-500.0,0.00054794,120]
[342680405,1732045842118,-500.0,0.00054794,120]
[342680406,1732045842128,-646.23479185,0.00054794,120]
[342680407,1732045842138,-500.0,0.00054794,120]
[342680408,1732045842147,-489.66873254,0.00054794,120]
[342680409,1732045842156,-500.0,0.00054794,120]
[342680410,1732045842166,-500.0,0.00054794,120]
[342680411,1732045842175,-500.0,0.00054794,120]
[342680412,1732045842185,-500.0,0.00054794,120]
[342680413,1732045842195,-500.0,0.00054794,120]
[342680414,1732045842205,-500.0,0.00054794,120]
[342680415,1732045842215,-500.0,0.00054794,120]
[342680416,1732045842224,-500.0,0.00054794,120]
[342680417,1732045842233,-598.72,0.00054794,120]
[342680418,1732045842242,-500.0,0.00054794,120]
[342680419,1732045842251,-500.0,0.00054794,120]
[342680420,1732045842260,-500.0,0.00054794,120]
[342680421,1732045842269,-500.0,0.00054794,120]
[342680422,1732045842280,-574.02212083,0.00054794,120]
[342680423,1732045842290,-500.0,0.00054794,120]
[342680424,1732045842299,-500.0,0.00054794,120]
[342680425,1732045842310,-500.0,0.00054794,120]
[342680426,1732045842319,-515.3168448,0.00054794,120]
[342680427,1732045842329,-500.0,0.00054794,120]
[342680428,1732045842339,-500.0,0.00054794,120]
[342680429,1732045842349,-500.0,0.00054794,120]
[342680430,1732045842359,-500.0,0.00054794,120]
[342680431,1732045842367,-500.0,0.00054794,120]
[342680432,1732045842378,-500.0,0.00054794,120]
[342680433,1732045842387,-500.0,0.00054794,120]
[342680434,1732045842396,-500.0,0.00054794,120]
[342680435,1732045842405,-500.0,0.00054794,120]
[342680436,1732045842415,-500.0,0.00054794,120]
[342680437,1732045842423,-500.0,0.00054794,120]
[342680438,1732045842433,-500.0,0.00054794,120]
[342680439,1732045842442,-503.41958549,0.00054794,120]
[342680440,1732045842451,-226.10830992,0.00054794,120]
[342680441,1732045842460,-500.0,0.00054794,120]
[342680442,1732045842469,-500.0,0.00054794,120]
[342680443,1732045842478,-500.0,0.00054794,120]
[342680444,1732045842487,-500.0,0.00054794,120]
[342680445,1732045842496,-500.0,0.00054794,120]
[342680446,1732045842505,-500.0,0.00054794,120]
[342680447,1732045842514,-500.0,0.00054794,120]
[342680448,1732045842523,-500.0,0.00054794,120]
[342680449,1732045842533,-500.0,0.00054794,120]
[342680450,1732045842542,-500.0,0.00054794,120]
[342680451,1732045842660,-348.44884571,0.00054794,120]
[342680452,1732045842670,-500.0,0.00054794,120]
[342680453,1732045842680,-500.0,0.00054794,120]
[342680454,1732045842689,-500.0,0.00054794,120]
[342680455,1732045842698,-500.0,0.00054794,120]
[342680456,1732045842707,-500.0,0.00054794,120]
[342680457,1732045842716,-500.0,0.00054794,120]
[342680458,1732045842726,-500.0,0.00054794,120]
[342680459,1732045842735,-523.8,0.00054794,120]
[342680460,1732045842744,-500.0,0.00054794,120]
[342680461,1732045842753,-500.0,0.00054794,120]
[342680462,1732045842762,-508.23,0.00054794,120]
[342680463,1732045842771,-500.0,0.00054794,120]
[342680464,1732045842780,-500.0,0.00054794,120]
[342680465,1732045842789,-263.44,0.00054794,120]
[342680466,1732045842798,-500.0,0.00054794,120]
[342680467,1732045842807,-500.0,0.00054794,120]
[342680468,1732045842816,-500.0,0.00054794,120]
[342680469,1732045842825,-559.48128741,0.00054794,120]
[342680470,1732045842834,-500.0,0.00054794,120]
[342680471,1732045842843,-500.0,0.00054794,120]